bitfinex/quotes_ETHUSD_20250914
["timestamp","ask_amount","ask_price","bid_price","bid_amount"]
[1757857370961,23.94232368,4625.1,4625.0,0.001]
[1757857373477,23.94432368,4625.1,4625.0,0.001]
[1757857374976,23.4801668,4625.1,4625.0,0.001]
[1757857375566,13.56578764,4625.1,4625.0,0.001]
[1757857375894,18.10338764,4625.1,4625.0,0.001]
[1757857378273,18.56730715,4625.1,4625.0,0.001]
[1757857378478,18.10338764,4625.1,4625.0,0.001]
[1757857380205,18.56736769,4625.1,4625.0,0.001]
[1757857380368,19.86436769,4625.1,4625.0,0.001]
[1757857382897,19.86436769,4625.1,4625.0,0.3169]
[1757857382898,16.89678764,4625.1,4625.0,0.3169]
[1757857383205,16.69578157,4625.1,4625.0,0.3169]
[1757857383606,16.69578157,4625.1,4625.0,0.001]
[1757857384217,16.69578157,4625.1,4625.0,0.3169]
[1757857384516,18.35578157,4625.1,4625.0,0.3169]
[1757857384689,18.5571756,4625.1,4625.0,0.3169]
[1757857384892,19.2877756,4625.1,4625.0,0.001]
[1757857385214,22.88175476,4625.1,4625.0,0.001]
[1757857386516,23.79435476,4625.1,4625.0,0.001]
[1757857387095,24.25840015,4625.1,4625.0,0.001]
[1757857389015,2.16258298,4624.1,4624.0,1e-08]
[1757857389189,14.59516578,4624.1,4624.0,1e-08]
[1757857389389,15.5582052,4624.1,4624.0,1e-08]
[1757857389590,17.2628052,4624.1,4624.0,1e-08]
[1757857389790,2.16314434,4622.9,4622.8,0.081]
[1757857390019,11.4751235,4622.9,4622.8,0.081]
[1757857390317,11.59572714,4622.9,4622.8,0.081]
[1757857390509,11.68231782,4622.9,4622.8,0.081]
[1757857390710,12.9094262,4622.9,4622.8,0.081]
[1757857390909,13.3424262,4622.9,4622.8,0.081]
[1757857391315,13.22182256,4622.9,4622.8,0.081]
[1757857391922,13.21563881,4622.9,4622.8,0.081]
[1757857392531,8.89105965,4622.9,4622.8,0.3969]
[1757857393025,8.89105965,4622.9,4622.8,0.8649]
[1757857393189,5.26605965,4622.9,4622.8,0.8649]
[1757857393394,8.89105965,4622.9,4622.8,0.8649]
[1757857393928,8.89105965,4622.9,4622.8,0.3969]
[1757857395012,8.89105965,4622.9,4622.8,0.081]
[1757857396313,8.89105965,4622.9,4622.8,0.3947]
[1757857397032,5.26605965,4622.9,4622.8,0.3947]
[1757857397196,8.89105965,4622.9,4622.8,0.3947]
[1757857398627,8.89105965,4622.9,4622.8,1.3269]
[1757857398628,3.90973502,4622.9,4622.8,1.3269]
[1757857398841,7.44814434,4622.9,4622.8,1.3269]
[1757857399046,7.44814434,4622.9,4622.8,0.872]
[1757857399443,7.44814434,4622.9,4622.8,0.3947]
[1757857400826,7.44814434,4622.9,4622.8,0.081]
[1757857401055,9.1650008,4622.9,4622.8,0.081]
[1757857401258,5.2519008,4622.9,4622.8,0.3947]
[1757857401562,7.44814434,4622.9,4622.8,1.3269]
[1757857401725,1.66,4622.9,4622.8,1.3269]
[1757857401927,7.44814434,4622.9,4622.8,1.52854213]
[1757857402624,7.44814434,4622.9,4622.8,1.3269]
[1757857402830,7.44814434,4622.9,4622.8,0.872]
[1757857403016,5.285,4622.9,4622.8,1.3269]
[1757857403216,7.44814434,4622.9,4622.8,1.3269]
[1757857403527,7.44814434,4622.9,4622.8,0.872]
[1757857404244,3.82314434,4622.9,4622.8,1.07367435]
[1757857404542,7.44814434,4622.9,4622.8,1.07367435]
[1757857404918,3.82314434,4622.9,4622.8,1.07367435]
[1757857405254,7.44814434,4622.9,4622.8,1.52857435]
[1757857406656,1.66,4622.9,4622.8,1.52857435]
[1757857406815,5.285,4622.9,4622.8,1.52857435]
[1757857409462,1.66,4622.9,4622.8,1.52857435]
[1757857409626,1.768,4622.9,4622.8,3.69176548]
[1757857409956,5.393,4622.9,4622.8,3.69176548]
[1757857410852,5.393,4622.9,4622.8,1.52857435]
[1757857414154,5.393,4622.9,4622.8,3.69176548]
[1757857414355,1.768,4622.9,4622.8,1.52857435]
[1757857414522,5.393,4622.9,4622.8,1.52857435]
[1757857416452,1.768,4622.9,4622.8,1.52857435]
[1757857416645,5.393,4622.9,4622.8,3.69176548]
[1757857416849,1.768,4622.9,4622.8,4.27737511]
[1757857417556,5.392,4622.9,4622.8,4.27737511]
[1757857422055,3.732,4622.9,4622.8,4.27737511]
[1757857422249,0.108,4622.9,4622.8,4.27737511]
[1757857422454,3.732,4622.9,4622.8,4.27737511]
[1757857423273,3.732,4622.9,4622.8,3.82247511]
[1757857423970,3.732,4622.9,4622.8,3.34517511]
[1757857424175,3.732,4622.9,4622.8,1.18198398]
[1757857424373,3.732,4622.9,4622.8,0.59637435]
[1757857425063,3.732,4622.9,4622.8,2.75956548]
[1757857425267,3.732,4622.9,4622.8,3.92341924]
[1757857429149,3.732,4622.9,4622.8,3.21136548]
[1757857430181,3.732,4622.9,4622.8,1.04817435]
[1757857430358,3.732,4622.9,4622.8,2.75956548]
[1757857430683,4.037,4622.9,4622.8,0.28267435]
[1757857430858,4.4871,4622.9,4622.8,1.44746001]
[1757857431058,4.4871,4622.9,4622.8,0.28267435]
[1757857431891,4.4861,4622.9,4622.8,0.28267435]
[1757857432280,4.4861,4622.9,4622.8,1.44746001]
[1757857434290,0.8631,4622.9,4622.8,1.44746001]
[1757857434495,4.4861,4622.9,4622.8,1.44746001]
[1757857436196,4.4861,4622.9,4622.8,0.28267435]
[1757857437699,4.4861,4622.9,4622.8,0.28349737]
[1757857438387,3.731,4622.9,4622.8,0.28349737]
[1757857438785,3.731,4622.9,4622.8,0.58229737]
[1757857440811,3.731,4622.9,4622.8,0.28349737]
[1757857442983,3.731,4622.9,4622.8,0.58229737]
[1757857443316,3.731,4622.9,4622.8,0.28349737]
[1757857444127,3.731,4622.9,4622.8,3.2348885]
[1757857444588,3.731,4622.9,4622.8,1.07169737]
[1757857444793,3.731,4622.9,4622.8,0.58229737]
[1757857444989,3.731,4622.9,4622.8,2.7454885]
[1757857446016,0.108,4622.9,4622.8,2.7454885]
[1757857446315,2.373,4623.0,4622.9,2.16314434]
[1757857446515,0.108,4623.2,4623.0,2.16309755]
[1757857446836,3.73,4623.2,4623.1,2.38717863]
[1757857447004,3.73,4623.2,4623.1,2.68597863]
[1757857447511,1.66,4623.6,4623.4,2.16290693]
[1757857447728,5.39,4623.6,4623.5,0.50129737]
[1757857447935,5.39,4623.6,4623.5,0.20249737]
[1757857449335,5.39,4623.6,4623.5,1.36915803]
[1757857449535,5.39,4623.6,4623.5,3.53202166]
[1757857450232,5.39,4623.6,4623.5,1.36915803]
[1757857451927,6.1446,4623.6,4623.5,1.36915803]
[1757857452310,2.5226,4623.6,4623.5,1.36915803]
[1757857452641,6.1446,4623.6,4623.5,1.36915803]
[1757857453540,5.39,4623.6,4623.5,1.36915803]
[1757857453916,6.1446,4623.6,4623.5,1.36915803]
[1757857455134,6.1446,4623.6,4623.5,0.20249737]
[1757857455135,9.63504533,4623.6,4623.5,0.20249737]
[1757857457180,7.47222848,4623.6,4623.5,0.20249737]
[1757857457383,9.63504533,4623.6,4623.5,0.20249737]
[1757857457753,7.47222848,4623.6,4623.5,0.20249737]
[1757857458058,3.85022848,4623.6,4623.5,0.20249737]
[1757857458260,7.48222848,4623.6,4623.5,0.20249737]
[1757857458768,6.1811,4623.6,4623.5,0.20249737]
[1757857459010,5.389,4623.6,4623.5,0.20249737]
[1757857459171,6.1596,4623.6,4623.5,0.20249737]
[1757857459367,6.6181,4623.6,4623.5,0.20249737]
[1757857460884,6.1596,4623.6,4623.5,0.20249737]
[1757857462172,1.768,4623.6,4623.5,1.36915803]
[1757857462369,5.389,4623.6,4623.5,1.36915803]
[1757857462574,6.1596,4623.6,4623.5,1.36915803]
[1757857462772,6.1596,4623.6,4623.5,0.20249737]
[1757857462773,7.23406,4623.6,4623.5,0.20249737]
[1757857463008,7.23406,4623.6,4623.5,0.20349737]
[1757857464305,9.39687685,4623.6,4623.5,0.20349737]
[1757857464510,7.23406,4623.6,4623.5,0.20349737]
[1757857465003,3.61306,4623.6,4623.5,0.20349737]
[1757857465307,7.23406,4623.6,4623.5,0.20349737]
[1757857465787,3.61306,4623.6,4623.5,0.20349737]
[1757857465981,7.23406,4623.6,4623.5,0.20349737]
[1757857466886,7.23406,4623.6,4623.5,0.20343288]
[1757857467278,6.77556,4623.6,4623.5,0.20343288]
[1757857468408,5.389,4623.6,4623.5,0.20343288]
[1757857469507,5.389,4623.6,4623.5,1.67069354]
[1757857469710,1.768,4623.6,4623.5,1.67069354]
[1757857469906,5.389,4623.6,4623.5,1.67069354]
[1757857470524,1.768,4623.6,4623.5,1.67069354]
[1757857470726,5.389,4623.6,4623.5,1.67069354]
[1757857470927,5.388,4623.6,4623.5,1.67069354]
[1757857471534,5.388,4623.6,4623.5,1.37009354]
[1757857471904,5.6882,4623.6,4623.5,1.37009354]
[1757857472104,6.6171,4623.6,4623.5,1.37009354]
[1757857472536,6.6171,4623.6,4623.5,0.20343288]
[1757857472734,6.6171,4623.6,4623.5,1.37009354]
[1757857473202,6.6171,4623.6,4623.5,0.20343288]
[1757857473403,6.6171,4623.6,4623.5,1.37009354]
[1757857473601,6.1586,4623.6,4623.5,1.37009354]
[1757857474715,6.6171,4623.6,4623.5,0.20343288]
[1757857475736,7.49508262,4623.6,4623.5,0.20343288]
[1757857476125,9.65789947,4623.6,4623.5,0.20343288]
[1757857476824,10.30714543,4623.6,4623.5,0.20343288]
[1757857477044,9.65789947,4623.6,4623.5,0.20343288]
[1757857478540,7.49508262,4623.6,4623.5,0.20343288]
[1757857478737,3.87508262,4623.6,4623.5,0.20343288]
[1757857478952,7.49508262,4623.6,4623.5,0.20343288]
[1757857479152,9.65789947,4623.6,4623.5,0.20343288]
[1757857480352,7.49508262,4623.6,4623.5,0.20343288]
[1757857481122,7.03658262,4623.6,4623.5,0.20343288]
[1757857482233,9.19939947,4623.6,4623.5,0.20343288]
[1757857482550,7.03658262,4623.6,4623.5,0.20343288]
[1757857482746,9.65789947,4623.6,4623.5,0.20343288]
[1757857484159,7.49508262,4623.6,4623.5,0.20343288]
[1757857484644,9.65789947,4623.6,4623.5,0.20343288]
[1757857488824,10.3071932,4623.6,4623.5,0.20343288]
[1757857489563,10.42819794,4623.6,4623.5,0.20352213]
[1757857491358,10.3071932,4623.6,4623.5,0.20352213]
[1757857492354,10.42815147,4623.6,4623.5,0.20352213]
[1757857492566,10.3071932,4623.6,4623.5,0.20352213]
[1757857498052,10.42809699,4623.6,4623.5,0.001]
[1757857500458,10.3071932,4623.6,4623.5,0.001]
[1757857500674,10.42805009,4623.6,4623.5,0.001]
[1757857502078,21.69646195,4623.6,4623.5,0.001]
[1757857503260,18.07646195,4623.6,4623.5,0.001]
[1757857503595,21.69546195,4623.6,4623.5,0.001]
[1757857506198,2.16314434,4622.9,4622.8,1e-08]
[1757857506507,9.81554706,4622.9,4622.8,1e-08]
[1757857506667,11.14440395,4622.9,4622.8,1e-08]
[1757857506862,11.23100006,4622.9,4622.8,1e-08]
[1757857507172,14.23100006,4622.9,4622.8,1e-08]
[1757857507502,14.43203257,4622.9,4622.8,1e-08]
[1757857507872,2.16351874,4622.1,4622.0,1e-08]
[1757857508077,8.25602424,4622.1,4622.0,1e-08]
[1757857508277,9.46402424,4622.1,4622.0,1e-08]
[1757857508681,9.55063216,4622.1,4622.0,1e-08]
[1757857509883,12.67120894,4622.1,4622.0,1e-08]
[1757857512014,13.09520094,4622.1,4622.0,1e-08]
[1757857515111,21.95420094,4622.1,4622.0,1e-08]
[1757857515279,2.16398692,4621.1,4621.0,1e-08]
[1757857515503,7.44398692,4621.1,4621.0,1e-08]
[1757857515931,8.66688693,4621.1,4621.0,1e-08]
[1757857516704,8.22888693,4621.1,4621.0,1e-08]
[1757857516901,9.10686955,4621.1,4621.0,1e-08]
[1757857517317,8.79576955,4621.1,4621.0,1e-08]
[1757857518337,13.01496955,4621.1,4621.0,1e-08]
[1757857519515,13.01496955,4621.1,4620.8,1e-08]
[1757857519516,2.16408059,4620.9,4620.8,1e-08]
[1757857519721,12.81748331,4620.9,4620.8,1e-08]
[1757857520036,14.03668331,4620.9,4620.8,1e-08]
[1757857520329,14.12331956,4620.9,4620.8,1e-08]
[1757857521831,10.30523127,4620.9,4620.8,1e-08]
[1757857523640,10.42532866,4620.9,4620.8,1e-08]
[1757857524360,17.19532866,4620.9,4620.8,1e-08]
[1757857525739,20.50066793,4620.9,4620.8,1e-08]
[1757857526052,20.50066516,4620.9,4620.8,1e-08]
[1757857526663,21.79766516,4620.9,4620.8,1e-08]
[1757857528621,20.88916516,4620.9,4620.8,1e-08]
[1757857528947,21.32716516,4620.9,4620.8,1e-08]
[1757857530326,17.70816516,4620.9,4620.8,1e-08]
[1757857530547,21.32716516,4620.9,4620.8,0.00100001]
[1757857530744,12.35712589,4620.9,4620.8,1e-08]
[1757857530944,15.85603127,4620.9,4620.8,0.48350001]
[1757857531366,15.85603127,4620.9,4620.8,1e-08]
[1757857534351,15.97638296,4620.9,4620.8,0.48350001]
[1757857534876,15.97638296,4620.9,4620.8,1e-08]
[1757857535776,15.97638296,4620.9,4620.8,0.48350001]
[1757857536747,12.14106853,4620.9,4620.8,0.48350001]
[1757857537056,15.75906853,4620.9,4620.8,0.68650001]
[1757857537383,15.75924372,4620.9,4620.8,0.68650001]
[1757857538704,15.75924372,4620.9,4620.8,0.48350001]
[1757857539303,8.98924372,4620.9,4620.8,0.48350001]
[1757857541308,5.37124372,4620.9,4620.8,0.48350001]
[1757857541607,8.98924372,4620.9,4620.8,0.48350001]
[1757857542806,5.37124372,4620.9,4620.8,0.48350001]
[1757857543007,0.20716313,4620.9,4620.8,0.68581992]
[1757857543207,5.78208059,4620.9,4620.8,0.68581992]
[1757857544245,6.7429897,4620.9,4620.8,0.20231991]
[1757857544516,2.16431477,4620.4,4620.3,1e-08]
[1757857544681,5.78231477,4620.4,4620.3,0.2023665]
[1757857544879,9.88230999,4620.4,4620.3,0.2023665]
[1757857545084,11.20977356,4620.4,4620.3,1e-08]
[1757857545377,11.69427356,4620.4,4620.3,1e-08]
[1757857545582,14.69427356,4620.4,4620.3,1e-08]
[1757857549081,14.89537079,4620.4,4620.3,1e-08]
[1757857549721,20.28971006,4620.4,4620.3,1e-08]
[1757857550041,2.16473644,4619.5,4619.4,1e-08]
[1757857550215,10.74907571,4619.5,4619.4,1e-08]
[1757857550416,11.60973928,4619.5,4619.4,1e-08]
[1757857550609,12.09373928,4619.5,4619.4,1e-08]
[1757857550807,12.18040068,4619.5,4619.4,1e-08]
[1757857551028,13.14130979,4619.5,4619.4,1e-08]
[1757857551340,16.14130979,4619.5,4619.4,1e-08]
[1757857552008,15.65730979,4619.5,4619.4,1e-08]
[1757857552210,8.43282482,4619.5,4619.4,0.30320001]
[1757857552411,11.08891571,4619.5,4619.4,0.77380001]
[1757857552617,7.96834824,4619.5,4619.4,0.97680001]
[1757857552819,7.96834824,4619.5,4619.4,0.77380001]
[1757857555555,7.96934824,4619.5,4619.4,0.77380001]
[1757857557917,4.35134824,4619.5,4619.4,0.77380001]
[1757857558117,5.8036118,4619.5,4619.4,0.97680001]
[1757857558352,5.7169504,4619.5,4619.4,0.97680001]
[1757857559421,5.7169504,4619.5,4619.4,0.77380001]
[1757857559617,1.662,4619.5,4619.4,0.97680001]
[1757857560023,5.279,4619.5,4619.4,0.97680001]
[1757857560547,5.279,4619.5,4619.4,1.29106699]
[1757857560752,5.279,4619.5,4619.4,1.49319872]
[1757857561249,5.279,4619.5,4619.4,0.97593174]
[1757857562643,8.17613644,4619.5,4619.4,0.20213174]
[1757857562845,8.17613644,4619.5,4619.4,1e-08]
[1757857563026,8.66323644,4619.5,4619.4,1e-08]
[1757857563226,9.81101101,4619.5,4619.4,1e-08]
[1757857565678,9.81101101,4619.5,4619.4,0.29390001]
[1757857565679,7.44373644,4619.5,4619.4,0.29390001]
[1757857565892,7.44373644,4619.5,4619.4,0.77530001]
[1757857566059,1.662,4619.5,4619.4,0.77530001]
[1757857566263,5.279,4619.5,4619.4,0.77530001]
[1757857566864,5.279,4619.5,4619.4,0.97745991]
[1757857567053,5.279,4619.5,4619.4,0.97746141]
[1757857567387,7.44373644,4619.5,4619.4,0.49606141]
[1757857568962,7.74363644,4619.5,4619.4,0.20216141]
[1757857569155,8.17613644,4619.5,4619.4,1e-08]
[1757857569365,9.65406472,4619.5,4619.4,0.20222159]
[1757857569553,9.65406472,4619.5,4619.4,1e-08]
[1757857572073,9.16696472,4619.5,4619.4,1e-08]
[1757857573296,9.2536188,4619.5,4619.4,1e-08]
[1757857576799,9.84816906,4619.5,4619.4,1e-08]
[1757857578906,18.24250833,4619.5,4619.4,1e-08]
[1757857579111,18.44389494,4619.5,4619.4,1e-08]
[1757857579688,3.46201764,4618.9,4618.8,1e-08]
[1757857579894,13.38335691,4618.9,4618.8,1e-08]
[1757857580104,13.99689185,4618.9,4618.8,1e-08]
[1757857580303,14.94405021,4618.9,4618.8,1e-08]
[1757857580636,15.14664152,4618.9,4618.8,1e-08]
[1757857580926,15.54463885,4618.9,4618.8,1e-08]
[1757857581724,15.54463885,4618.9,4618.8,0.77840001]
[1757857581725,6.10537725,4618.9,4618.8,0.77840001]
[1757857581913,1.662,4619.5,4618.8,0.77840001]
[1757857582101,2.16497717,4619.0,4618.8,0.77840001]
[1757857582302,0.64991405,4619.3,4618.9,0.4623]
[1757857582626,3.616,4619.2,4618.9,0.4623]
[1757857582799,3.617,4619.1,4619.0,0.4623]
[1757857582999,5.7819239,4619.1,4619.0,0.7784]
[1757857583807,3.617,4619.1,4619.0,0.7784]
[1757857584104,2.16492202,4619.2,4619.0,0.7784]
[1757857584303,5.7819239,4619.1,4619.0,0.3161]
[1757857584514,5.7809239,4619.1,4619.0,0.3161]
[1757857584725,3.616,4619.1,4619.0,0.3161]
[1757857584912,3.616,4619.1,4619.0,0.7784]
[1757857585222,5.7809239,4619.1,4619.0,0.7784]
[1757857585424,5.7809239,4619.1,4619.0,0.3161]
[1757857585601,3.616,4619.1,4619.0,0.3161]
[1757857585810,5.7809239,4619.1,4619.0,0.3161]
[1757857587026,3.616,4619.1,4619.0,0.3161]
[1757857587542,3.616,4619.1,4619.0,0.7784]
[1757857588010,5.7809239,4619.1,4619.0,0.7784]
[1757857588210,5.7809239,4619.1,4619.0,0.3161]
[1757857588751,3.616,4619.1,4619.0,0.3161]
[1757857589242,5.7809239,4619.1,4619.0,0.3161]
[1757857589819,5.7809239,4619.1,4618.9,0.001]
[1757857590347,2.16497077,4619.0,4618.9,0.001]
[1757857590551,2.16497077,4619.0,4618.9,0.20327181]
[1757857591237,5.78093051,4619.1,4618.9,0.20327181]
[1757857591433,5.78093051,4619.1,4618.9,0.3171]
[1757857591634,3.616,4619.1,4618.9,0.3171]
[1757857591825,3.616,4619.1,4619.0,0.20229082]
[1757857592020,5.78093484,4619.1,4619.0,0.20229082]
[1757857592247,3.616,4619.1,4619.0,0.20229082]
[1757857592747,5.7809239,4619.1,4619.0,0.20229082]
[1757857593054,2.16497077,4619.0,4618.9,0.001]
[1757857593245,2.74667077,4619.0,4618.9,0.20331259]
[1757857593544,3.03807077,4619.0,4618.9,0.20331259]
[1757857593747,2.27297077,4619.0,4618.9,0.20331259]
[1757857594214,3.03807077,4619.0,4618.9,0.20331259]
[1757857594430,3.51177077,4619.0,4618.9,0.20331259]
[1757857594632,4.39366576,4619.0,4618.9,0.001]
[1757857597864,8.33980804,4619.0,4618.9,0.001]
[1757857598230,8.42648183,4619.0,4618.9,0.001]
[1757857599651,8.42648183,4619.0,4616.9,0.4623]
[1757857599652,2.089,4618.7,4616.9,0.4623]
[1757857599960,2.16581855,4617.2,4616.6,0.4623]
[1757857600161,2.16595551,4616.9,4616.6,0.4623]
[1757857600485,5.78195551,4616.9,4616.6,0.4623]
[1757857600779,5.78195551,4616.9,4616.8,0.3961]
[1757857600984,3.616,4616.9,4616.8,0.8584]
[1757857602345,5.78195551,4616.9,4616.8,0.8584]
[1757857602669,3.616,4616.9,4616.8,0.8584]
[1757857602887,5.78195551,4616.9,4616.8,0.8584]
[1757857603188,3.616,4616.9,4616.8,0.8584]
[1757857603357,5.78195551,4616.9,4616.8,0.8584]
[1757857604270,3.616,4616.9,4616.8,0.8584]
[1757857605805,3.616,4616.9,4616.8,1.0614]
[1757857606302,3.616,4616.9,4616.8,0.8584]
[1757857608665,3.616,4616.9,4616.8,1.36384845]
[1757857609499,3.616,4616.9,4616.8,0.3961]
[1757857609713,3.616,4616.9,4616.8,0.08]
[1757857610074,3.616,4616.9,4616.8,0.3693]
[1757857610601,5.78195551,4616.9,4616.8,0.3693]
[1757857611305,3.616,4616.9,4616.8,0.08]
[1757857612589,3.616,4616.9,4616.8,0.3693]
[1757857612975,3.616,4616.9,4616.8,0.8554]
[1757857614490,3.616,4616.9,4616.8,0.3693]
[1757857614809,3.616,4616.9,4616.8,0.8554]
[1757857615712,5.78195551,4616.9,4616.8,0.08]
[1757857616008,6.49615551,4616.9,4616.8,0.08]
[1757857616409,6.96075551,4616.9,4616.8,0.08]
[1757857618121,6.49615551,4616.9,4616.8,0.08]
[1757857619726,4.3302,4616.9,4616.8,0.08]
[1757857620099,6.96075551,4616.9,4616.8,0.08]
[1757857620428,6.96075551,4616.9,4616.8,0.081]
[1757857620750,4.3302,4616.9,4616.8,0.081]
[1757857621224,6.49615551,4616.9,4616.8,0.081]
[1757857624563,4.3302,4616.9,4616.8,0.081]
[1757857624973,3.9012,4616.9,4616.8,0.081]
[1757857625266,7.26906067,4616.9,4616.8,0.081]
[1757857625766,4.3302,4616.9,4616.8,0.081]
[1757857626280,6.49615551,4616.9,4616.8,0.081]
[1757857627135,6.49615551,4616.9,4616.8,0.28352274]
[1757857628951,6.96075551,4616.9,4616.8,0.28371408]
[1757857633175,4.3302,4616.9,4616.8,0.28371408]
[1757857633360,6.49615551,4616.9,4616.8,0.28371408]
[1757857633738,7.5285573,4616.9,4616.8,0.28371408]
[1757857633964,7.9931573,4616.9,4616.8,0.28371408]
[1757857636775,8.11426657,4616.9,4616.8,0.081]
[1757857637282,11.11426657,4616.9,4616.8,0.081]
[1757857637661,14.93966656,4616.9,4616.8,0.081]
[1757857639357,11.11426657,4616.9,4616.8,0.081]
[1757857640693,6.31946657,4616.9,4616.8,0.081]
[1757857640897,5.78195551,4616.9,4616.8,0.3945]
[1757857641099,9.98125551,4616.9,4616.8,0.20552218]
[1757857641262,13.35855183,4616.9,4616.8,0.00300007]
[1757857641462,7.65055183,4616.9,4616.8,0.00300007]
[1757857641668,11.26655183,4616.9,4616.8,0.00300007]
[1757857643466,7.65055183,4616.9,4616.8,0.00300007]
[1757857643666,7.16945183,4616.9,4616.8,0.00300007]
[1757857643902,11.26655183,4616.9,4616.8,0.00300007]
[1757857649909,14.57685405,4616.9,4616.8,0.00300007]
[1757857650320,2.1661901,4616.4,4616.3,0.001]
[1757857650614,5.7821901,4616.4,4616.3,0.001]
[1757857650832,7.29522114,4616.4,4616.3,0.001]
[1757857651215,7.77632114,4616.4,4616.3,0.001]
[1757857651798,7.29522114,4616.4,4616.3,0.001]
[1757857654116,6.57702114,4616.4,4616.3,0.001]
[1757857655922,5.7821901,4616.4,4616.3,0.7833]
[1757857656121,5.7321901,4616.4,4616.3,0.7833]
[1757857658351,5.7321901,4616.4,4616.3,0.98580124]
[1757857658539,1.662,4617.0,4616.3,1.18880124]
[1757857658822,2.16614318,4616.5,4616.4,0.20250124]
[1757857659026,5.78214318,4616.5,4616.4,0.51600124]
[1757857659522,3.616,4616.5,4616.4,0.98480124]
[1757857659923,5.78214318,4616.5,4616.4,0.98480124]
[1757857662441,3.82794588,4617.0,4616.4,0.98480124]
[1757857662609,2.16613888,4616.6,4616.5,0.20250124]
[1757857662810,5.78213888,4616.6,4616.5,0.20250124]
[1757857663037,5.78213888,4616.6,4616.5,0.98480124]
[1757857663442,1.662,4617.0,4616.5,0.98480124]
[1757857663647,2.16604934,4616.7,4616.6,0.67130124]
[1757857663951,5.78204934,4616.7,4616.6,0.98480124]
[1757857664741,5.78204934,4616.7,4616.6,0.20250124]
[1757857664927,7.07281079,4616.7,4616.6,0.20250124]
[1757857665131,7.50441079,4616.7,4616.6,0.20250124]
[1757857665727,7.98551079,4616.7,4616.6,0.20250124]
[1757857667234,11.41692951,4616.7,4616.6,0.20250124]
[1757857667433,8.10662729,4616.7,4616.6,0.20250124]
[1757857668813,7.62552729,4616.7,4616.6,0.20250124]
[1757857669055,6.62136584,4616.7,4616.6,0.20250124]
[1757857669549,6.33476584,4616.7,4616.6,0.20250124]
[1757857669749,5.90316584,4616.7,4616.6,0.20250124]
[1757857670138,6.35396584,4616.7,4616.6,0.20250124]
[1757857670445,6.66596584,4616.7,4616.6,0.20250124]
[1757857670615,8.19185894,4616.7,4616.6,0.20250124]
[1757857672121,2.1661901,4616.4,4616.3,0.001]
[1757857672340,12.09149232,4616.4,4616.3,0.20375873]
[1757857672575,21.69798886,4616.4,4616.3,0.001]
[1757857673120,21.69798886,4616.4,4614.1,1.54621318]
[1757857673121,17.76979876,4616.4,4614.1,1.54621318]
[1757857673415,17.76979876,4616.4,4612.8,2.78587307]
[1757857673416,3.0,4614.4,4613.6,1.54621318]
[1757857673667,2.16741081,4613.8,4613.7,0.20276615]
[1757857673816,6.10641081,4613.8,4613.7,0.20276615]
[1757857674131,2.16783368,4612.9,4612.8,0.08]
[1757857674322,3.627,4612.9,4612.8,0.08]
[1757857674520,3.627,4612.9,4612.8,0.8732]
[1757857675268,3.628,4612.9,4612.8,0.8732]
[1757857675595,3.628,4612.9,4612.8,1.0772]
[1757857676374,3.629,4613.1,4612.8,1.0772]
[1757857676540,3.629,4613.1,4612.9,2.84813368]
[1757857676735,3.629,4613.1,4613.0,0.63165337]
[1757857676956,3.629,4613.1,4613.0,3.47974005]
[1757857677134,1.663,4613.3,4613.0,1.31195337]
[1757857677452,3.629,4613.2,4613.1,2.86971708]
[1757857677772,2.5976512,4614.6,4613.3,2.16763025]
[1757857677773,1.663,4614.0,4613.3,2.16763025]
[1757857677971,1.663,4614.0,4613.9,0.3077]
[1757857678187,5.292,4614.0,4613.9,0.784]
[1757857678376,5.293,4614.0,4613.9,3.15536383]
[1757857678534,5.293,4614.0,4613.9,3.68764723]
[1757857678739,1.663,4614.7,4614.0,2.16727359]
[1757857678961,1.663,4614.7,4614.1,2.64355009]
[1757857678962,3.63,4614.6,4614.1,2.64355009]
[1757857679176,3.63,4614.6,4614.1,2.16725009]
[1757857679441,3.63,4614.6,4614.5,2.47478202]
[1757857679664,3.63,4614.6,4614.5,3.15508202]
[1757857680178,1.663,4615.3,4614.8,2.16691523]
[1757857680482,1.663,4615.3,4615.2,0.3077]
[1757857680691,1.663,4615.3,4615.2,0.784]
[1757857680843,1.663,4615.3,4615.2,3.15475333]
[1757857681050,4.342,4615.3,4615.2,3.15475333]
[1757857681447,1.663,4616.0,4615.2,3.68691747]
[1757857681767,3.631,4615.9,4615.6,2.16654725]
[1757857681948,1.663,4616.0,4615.8,0.3077]
[1757857682276,3.631,4615.9,4615.8,0.3077]
[1757857682470,3.631,4615.9,4615.8,0.784]
[1757857682665,1.663,4616.0,4615.8,0.784]
[1757857682883,3.631,4615.9,4615.8,2.47417168]
[1757857683380,3.631,4615.9,4615.8,0.3077]
[1757857683584,3.631,4615.9,4615.0,0.4763]
[1757857683585,0.108,4615.8,4615.0,0.4763]
[1757857683774,0.108,4615.4,4615.0,0.4763]
[1757857683970,3.739,4615.4,4615.3,0.3077]
[1757857685004,3.739,4615.4,4615.3,2.95070638]
[1757857685173,3.739,4615.4,4615.3,3.15470638]
[1757857685373,3.739,4615.4,4615.3,2.95070638]
[1757857685572,4.0359,4615.4,4614.7,0.4763]
[1757857685773,0.108,4615.1,4614.4,2.16711008]
[1757857686069,4.3585,4615.4,4614.0,0.9]
[1757857686070,0.108,4614.6,4614.0,0.9]
[1757857686270,0.108,4614.6,4614.5,0.3077]
[1757857686981,0.4049,4614.6,4613.9,0.4763]
[1757857687284,0.4049,4614.6,4613.7,2.16745714]
[1757857687285,0.7275,4614.6,4613.7,2.16745714]
[1757857687489,0.108,4614.0,4613.6,3.0]
[1757857687794,3.74,4614.0,4613.9,0.3077]
[1757857688096,3.74,4614.0,4613.9,2.47506383]
[1757857688282,3.74,4614.0,4613.9,2.95136383]
[1757857688986,3.74,4614.0,4613.9,3.76324542]
[1757857690092,0.108,4614.0,4613.9,3.76324542]
[1757857690297,0.108,4614.0,4613.9,3.78491905]